bitfinex-derivatives/quotes_ETHF0:USTF0_20250902
["timestamp","ask_amount","ask_price","bid_price","bid_amount"]
[1756839963458,0.3346,4310.2,4309.3,0.3215]
[1756839963662,0.5926,4310.7,4310.1,3.2078]
[1756839964365,0.3346,4310.7,4310.1,3.2078]
[1756839964661,0.5926,4310.7,4310.1,3.2078]
[1756839964964,0.3346,4310.7,4310.1,3.2078]
[1756839965464,3.2078,4311.1,4310.2,0.3215]
[1756839965661,0.258,4311.0,4310.2,0.3215]
[1756839965858,3.4658,4311.1,4310.2,0.3215]
[1756839966252,0.3346,4311.7,4310.6,3.2078]
[1756839966459,3.2078,4311.8,4310.7,0.5795]
[1756839966658,3.2078,4311.8,4310.7,0.3215]
[1756839966859,0.3346,4311.7,4310.7,0.5795]
[1756839967466,3.4658,4311.8,4310.8,0.3215]
[1756839967766,3.2078,4311.8,4310.8,0.55345]
[1756839967962,3.2078,4311.8,4310.8,0.3215]
[1756839968163,3.2078,4311.8,4310.9,0.55500543]
[1756839968365,3.2078,4311.8,4310.8,0.23195]
[1756839968671,0.3346,4312.7,4311.7,3.2078]
[1756839968859,0.3346,4312.7,4311.7,3.4648]
[1756839969263,0.3346,4312.7,4311.8,0.3215]
[1756839969570,0.257,4313.2,4312.2,3.2078]
[1756839969770,0.3346,4313.2,4312.3,0.3215]
[1756839970062,0.3346,4312.7,4311.7,0.3215]
[1756839970270,3.2078,4312.3,4311.5,3.2078]
[1756839970457,0.3346,4312.2,4311.6,0.32365743]
[1756839970662,0.3346,4312.2,4311.5,3.2078]
[1756839971368,0.3346,4312.2,4311.6,0.32370053]
[1756839971561,3.2078,4312.3,4311.5,3.2078]
[1756839971769,0.3095,4312.2,4311.5,3.2078]
[1756839971969,0.3095,4312.2,4311.5,3.1878]
[1756839972270,0.3095,4312.2,4311.6,0.33485633]
[1756839972467,3.5173,4312.3,4311.7,0.33485633]
[1756839972661,3.5173,4312.3,4311.5,3.5031]
[1756839972662,0.3095,4312.3,4311.8,0.65025486]
[1756839972864,3.2078,4312.3,4311.8,0.3153]
[1756839973064,0.3095,4312.2,4311.8,0.3153]
[1756839973259,0.1255,4313.0,4311.8,0.3153]
[1756839973260,0.3095,4313.2,4312.2,0.3153]
[1756839973465,0.3095,4313.4,4312.7,3.2078]
[1756839973663,0.3095,4313.4,4312.8,0.33492968]
[1756839973867,0.3095,4313.4,4313.0,0.3153]
[1756839974067,0.3095,4313.4,4312.8,0.3153]
[1756839974265,0.239,4313.8,4312.2,0.41738]
[1756839974266,3.2078,4313.1,4312.9,0.33476766]
[1756839974564,0.3095,4313.6,4313.0,0.33485016]
[1756839974766,0.3095,4313.4,4312.2,3.7801]
[1756839974966,0.3095,4313.4,4312.3,0.59183787]
[1756839975166,0.3095,4313.4,4312.7,3.2078]
[1756839975371,0.3095,4313.4,4312.8,0.65013787]
[1756839975573,0.3095,4313.4,4313.0,0.3153]
[1756839975873,0.3095,4313.4,4313.1,0.33483787]
[1756839976068,0.3095,4313.4,4312.7,3.2078]
[1756839976368,3.2078,4313.7,4312.8,0.65000365]
[1756839976670,0.3095,4313.8,4313.0,0.3153]
[1756839976874,0.257,4314.0,4313.3,0.3153]
[1756839977173,0.257,4314.0,4313.4,0.33470365]
[1756839977375,0.257,4314.0,4313.3,0.3153]
[1756839977667,3.2078,4314.2,4313.5,0.3153]
[1756839977872,0.3095,4314.3,4313.6,0.33447242]
[1756839978071,0.3095,4314.3,4313.7,3.54227242]
[1756839978271,0.3095,4314.3,4314.2,3.2078]
[1756839978476,0.3095,4314.3,4313.7,3.5231]
[1756839978774,0.3095,4314.3,4313.9,0.3153]
[1756839978972,0.3095,4314.3,4313.7,3.2078]
[1756839981075,0.3095,4314.3,4313.3,0.3153]
[1756839981369,0.3095,4314.3,4313.4,0.333695]
[1756839981573,0.3095,4314.3,4313.5,0.333695]
[1756839981776,0.3095,4314.3,4313.2,3.4638]
[1756839981968,0.3095,4314.3,4313.3,0.33363568]
[1756839982168,0.3095,4314.3,4313.4,0.33363568]
[1756839982373,0.5655,4314.3,4313.2,3.7791]
[1756839982581,0.5655,4314.3,4313.7,3.2078]
[1756839982869,0.1224,4315.0,4313.7,3.2078]
[1756839982870,0.3095,4314.9,4314.2,3.2078]
[1756839984175,0.3095,4314.9,4313.8,0.3153]
[1756839984375,0.3095,4314.7,4313.8,0.3153]
[1756839984776,0.5645,4314.7,4313.8,0.3153]
[1756839985470,0.5645,4314.7,4313.7,0.255]
[1756839985471,0.255,4314.7,4313.7,0.255]
[1756839985673,0.3095,4314.5,4313.7,0.255]
[1756839985970,0.3095,4314.5,4313.7,0.5703]
[1756839986573,0.3095,4314.5,4313.7,0.3153]
[1756839986773,0.3095,4314.5,4313.7,0.5703]
[1756839987377,0.3095,4314.5,4313.7,0.3153]
[1756839987571,0.3095,4314.5,4313.7,0.5703]
[1756839988976,0.3095,4314.5,4313.7,0.3153]
[1756839989176,0.3095,4314.5,4313.7,0.5703]
[1756839990174,0.3095,4314.5,4313.7,0.3153]
[1756839990380,0.4319,4314.5,4313.7,0.3153]
[1756839991178,0.3095,4314.4,4313.6,3.2078]
[1756839991381,0.1224,4314.5,4313.6,3.2078]
[1756839991579,0.3095,4314.4,4313.6,3.2078]
[1756839992480,0.1224,4314.5,4313.6,3.2078]
[1756839992673,3.2078,4314.1,4313.1,3.2078]
[1756839992875,0.3095,4313.9,4313.1,3.2078]
[1756839993075,0.1224,4313.5,4313.1,3.2078]
[1756839993582,0.23184,4313.4,4313.1,3.2078]
[1756839993781,0.1224,4313.5,4313.1,3.2078]
[1756839994280,0.3095,4313.4,4313.1,3.2078]
[1756839994472,0.1224,4314.0,4313.1,3.2078]
[1756839995273,0.3095,4313.9,4313.2,0.33526589]
[1756839995474,0.3095,4313.9,4313.3,0.33526589]
[1756839995676,0.3095,4313.9,4313.2,0.3153]
[1756839995876,0.3095,4313.9,4313.3,0.33522942]
[1756839996076,0.3095,4313.9,4313.2,0.3153]
[1756839996283,3.2078,4314.2,4313.4,0.3153]
[1756839996475,3.2078,4314.2,4313.5,0.3355232]
[1756839996684,3.2078,4314.2,4313.6,0.3355232]
[1756839996978,0.3095,4314.1,4313.7,0.6508232]
[1756839997283,0.3095,4314.1,4313.8,0.33568967]
[1756839997482,3.2078,4314.2,4313.1,3.87909]
[1756839997483,3.2078,4314.2,4313.3,0.3153]
[1756839997678,3.2078,4314.2,4313.4,0.33568902]
[1756839997885,3.2078,4314.2,4313.5,0.33568902]
[1756839998079,3.2078,4314.2,4313.6,0.33568902]
[1756839998284,0.3095,4314.1,4313.8,0.3153]
[1756839998480,0.3095,4314.1,4313.9,0.33568902]
[1756839998785,0.3095,4314.1,4314.0,0.33568902]
[1756839998983,0.3095,4314.1,4314.0,0.33581125]
[1756840000282,0.3095,4314.6,4314.0,0.33581125]
[1756840000590,0.3095,4314.6,4314.3,0.3153]
[1756840000787,0.3095,4314.6,4314.4,0.33581125]
[1756840000990,0.3095,4314.6,4314.5,0.33581125]
[1756840001891,30.9483,4315.1,4314.5,0.66201125]
[1756840002079,0.253,4315.0,4314.6,0.66201125]
[1756840002384,3.2078,4315.4,4314.9,0.3262]
[1756840002385,0.3203,4315.3,4314.9,0.3262]
[1756840002691,0.5733,4315.3,4315.0,0.33581125]
[1756840002984,3.5281,4315.9,4315.2,0.3262]
[1756840003181,3.5281,4315.9,4315.3,0.33581125]
[1756840003382,0.3203,4315.8,4315.4,0.66201125]
[1756840003687,3.2078,4315.9,4314.7,0.253]
[1756840003688,3.5281,4315.9,4315.6,0.3262]
[1756840003883,0.3203,4315.8,4315.7,0.33581125]
[1756840004387,3.2078,4315.9,4315.7,0.66201125]
[1756840004587,3.2078,4315.9,4315.8,0.33581125]
[1756840004883,3.5281,4315.9,4315.8,0.33581125]
[1756840005184,0.3203,4315.8,4315.1,4.02683622]
[1756840005489,0.3203,4315.8,4315.2,0.3252532]
[1756840005689,0.3203,4315.7,4315.3,0.3252532]
[1756840005877,0.3203,4315.7,4315.4,0.3252532]
[1756840006082,0.3203,4315.7,4315.1,4.02683622]
[1756840006083,0.3203,4315.7,4315.5,0.3252532]
[1756840006291,0.3203,4315.7,4315.6,0.3252532]
[1756840010691,30.609,4316.7,4315.7,0.3262]
[1756840010692,0.252,4316.5,4315.7,0.3262]
[1756840010996,0.252,4316.5,4315.8,0.3252532]
[1756840010997,0.5723,4316.5,4315.8,0.3252532]
[1756840011191,0.5723,4316.5,4315.7,3.534]
[1756840011192,0.5723,4316.5,4315.9,0.3252532]
[1756840011402,0.252,4316.5,4316.0,0.6514532]
[1756840011697,0.5723,4316.4,4316.1,0.3252532]
[1756840011896,0.3203,4316.3,4316.2,0.3252532]
[1756840012289,0.3203,4316.3,4315.1,1.23670534]
[1756840012290,0.3203,4316.3,4315.3,0.81903622]
[1756840012486,0.3203,4316.1,4315.3,0.81903622]
[1756840012697,0.252,4316.2,4315.4,0.61685518]
[1756840012993,0.3203,4315.9,4314.7,4.35303622]
[1756840013189,0.3203,4315.7,4314.8,0.32456708]
[1756840013391,0.3203,4315.7,4314.9,0.32456708]
[1756840013590,0.3203,4315.7,4315.0,0.32456708]
[1756840013785,0.3203,4315.7,4315.1,0.32456708]
[1756840013991,0.252,4315.8,4314.4,0.81903622]
[1756840013992,3.5281,4315.4,4314.4,0.81903622]
[1756840014195,0.3203,4315.2,4314.5,0.32461829]
[1756840014491,0.3203,4315.2,4314.6,0.32461829]
[1756840014492,0.1285,4315.0,4314.6,0.32461829]
[1756840014690,3.2078,4314.8,4314.1,3.2078]
[1756840014890,0.3203,4314.7,4314.2,0.32481304]
[1756840015097,3.2078,4314.8,4314.1,3.2078]
[1756840015296,0.3203,4314.7,4314.2,0.32492226]
[1756840015503,3.2078,4314.8,4314.1,3.2078]
[1756840015811,0.3203,4314.7,4314.2,0.32495589]
[1756840016110,3.2078,4314.8,4314.1,3.2078]
[1756840016405,0.3203,4314.7,4314.2,0.32494879]
[1756840016607,3.2078,4314.8,4313.6,3.2078]
[1756840016804,0.3203,4314.7,4313.7,0.32495616]
[1756840017009,0.3203,4314.7,4313.8,0.32495616]
[1756840017203,0.3203,4314.7,4313.9,0.32495616]
[1756840017405,3.2078,4314.3,4313.6,3.2078]
[1756840017707,0.1285,4314.5,4312.9,0.81903622]
[1756840017708,3.2078,4313.8,4312.9,0.81903622]
[1756840017903,0.3203,4313.1,4312.2,1.14953622]
[1756840018108,0.252,4313.0,4312.2,0.3305]
[1756840019303,0.3203,4312.5,4311.6,0.3305]
[1756840020608,0.3203,4312.2,4311.6,0.3305]
[1756840021409,3.2078,4312.3,4311.6,0.3305]
[1756840021804,0.252,4312.6,4312.1,0.3305]
[1756840022199,3.2078,4313.0,4312.1,0.3305]
[1756840022509,0.5713,4313.2,4312.6,3.2078]
[1756840022709,0.5713,4313.2,4312.5,0.3305]
[1756840022905,0.3203,4312.8,4312.1,0.3305]
[1756840025213,0.3203,4313.2,4312.1,0.3305]
[1756840026206,0.3203,4313.2,4312.2,0.3305]
[1756840026613,0.3203,4313.2,4312.7,3.2078]
[1756840026805,0.3203,4313.3,4312.7,3.2078]
[1756840027606,3.2078,4313.4,4312.7,3.2078]
[1756840027813,0.3203,4312.7,4312.0,3.5383]
[1756840028112,3.4588,4312.8,4312.0,3.5383]
[1756840028510,0.3203,4312.7,4312.0,3.5383]
[1756840029412,0.3203,4312.7,4312.0,0.3305]
[1756840029802,0.3203,4312.7,4312.1,3.2078]
[1756840030412,0.3203,4312.7,4312.0,0.3305]
[1756840030613,3.5281,4312.7,4312.0,0.3305]
[1756840030814,3.5281,4312.7,4311.6,3.4578]
[1756840030815,3.2078,4312.7,4311.6,3.5383]
[1756840031003,0.3203,4312.6,4311.6,3.2078]
[1756840031208,0.326,4312.6,4311.7,0.3202]
[1756840032411,0.326,4312.4,4311.6,3.528]
[1756840032605,0.576,4312.3,4311.6,3.528]
[1756840033315,0.25,4312.3,4311.6,3.528]
[1756840033511,3.2078,4312.2,4311.6,3.528]
[1756840033718,0.326,4312.1,4311.6,3.528]
[1756840033910,3.2078,4312.2,4311.6,3.528]
[1756840034106,3.2078,4312.2,4311.6,0.3202]
[1756840034107,0.326,4312.1,4311.6,0.3202]
[1756840034417,0.576,4312.3,4311.2,0.3202]
[1756840034914,0.326,4312.3,4311.2,0.3202]
[1756840035213,3.2078,4313.2,4312.3,0.3202]
[1756840036515,3.2078,4313.2,4312.4,0.23187]
[1756840036715,3.2078,4313.2,4312.3,0.23187]
[1756840036917,3.2078,4313.2,4312.4,0.5702]
[1756840037213,0.326,4313.1,4312.2,3.2078]
[1756840037413,3.2078,4313.2,4312.2,3.2078]
[1756840037414,0.326,4312.9,4312.2,3.2078]
[1756840037615,0.3723,4313.0,4311.7,0.3202]
[1756840037616,0.326,4312.5,4311.7,0.3202]
[1756840037916,0.3723,4313.0,4312.1,3.2078]
[1756840038120,3.2078,4312.5,4311.8,0.3202]
[1756840038317,0.326,4312.4,4311.8,0.3202]
[1756840040919,0.25,4312.9,4312.2,3.2078]
[1756840041121,0.25,4312.9,4312.3,0.3202]
[1756840042522,0.25,4312.9,4312.2,3.2078]
[1756840042523,0.25,4312.9,4312.4,5.335]
[1756840042718,0.576,4312.9,4312.4,5.335]
[1756840042911,3.2078,4313.3,4312.6,0.3202]
[1756840043117,3.4568,4313.3,4312.8,0.3202]
[1756840043312,0.575,4313.7,4312.9,0.32721235]
[1756840043520,3.2078,4314.0,4313.1,0.3202]
[1756840043716,3.2078,4314.0,4313.3,0.3202]
[1756840044112,3.2078,4314.0,4313.4,0.32747631]
[1756840044317,0.326,4314.1,4313.5,0.32739801]
[1756840044513,0.249,4314.2,4313.6,0.32739801]
[1756840044726,3.5338,4314.5,4313.8,0.3202]
[1756840044921,3.5338,4314.5,4314.0,0.3202]
[1756840045125,0.326,4314.4,4313.4,1.55690534]
[1756840045318,0.326,4313.9,4313.5,0.32738675]
[1756840045521,0.249,4313.8,4312.7,3.2078]
[1756840045829,0.326,4313.7,4312.7,3.2078]
[1756840046022,0.326,4313.6,4312.7,3.2078]
[1756840046327,0.326,4313.5,4312.7,3.2078]
[1756840046516,0.23185,4313.6,4312.7,3.2078]
[1756840046717,0.42971706,4313.8,4312.7,3.2078]
[1756840046917,0.23184,4313.7,4312.7,3.2078]
[1756840047427,0.23185,4313.6,4312.7,3.2078]
[1756840047628,0.326,4313.5,4312.7,3.2078]
[1756840047919,0.249,4313.6,4312.8,0.3202]
[1756840048124,0.575,4313.6,4312.8,0.3202]
[1756840049515,0.575,4313.6,4312.5,0.3786]
[1756840049516,3.2078,4313.1,4312.5,0.3202]
[1756840050923,3.2078,4313.1,4312.1,3.2078]
[1756840050924,0.326,4312.9,4312.3,1.23670534]
[1756840051119,0.326,4312.9,4312.1,4.44450534]
[1756840051325,0.326,4312.9,4312.1,3.2078]
[1756840051524,0.326,4312.9,4312.1,4.44450534]
[1756840051726,0.326,4312.9,4312.1,3.2078]
[1756840052026,0.326,4312.9,4312.1,4.44450534]
[1756840052227,0.326,4312.9,4312.1,3.2078]
[1756840052425,0.326,4312.9,4312.1,4.44450534]
[1756840052618,0.326,4312.9,4312.2,0.3202]
[1756840054316,0.249,4312.8,4312.2,0.3202]
[1756840054521,0.326,4312.3,4311.9,1.23670534]
[1756840054720,0.249,4312.2,4311.9,0.3202]
[1756840054914,0.326,4312.1,4311.9,0.3202]
[1756840055722,0.249,4312.2,4311.6,3.2078]
[1756840056324,0.249,4312.2,4311.7,0.3202]
[1756840056928,0.249,4312.2,4311.6,3.528]
[1756840057425,0.249,4312.2,4311.7,0.32452606]
[1756840057729,0.249,4312.2,4311.6,3.528]
[1756840057730,0.326,4312.1,4311.8,0.32452606]
[1756840057919,0.249,4312.2,4311.6,3.2078]
[1756840058124,0.249,4312.2,4311.7,0.32453163]
[1756840058428,0.249,4312.2,4311.8,0.32453163]
[1756840058623,0.249,4312.2,4311.6,3.2078]
[1756840058823,0.249,4312.2,4311.8,0.3202]
[1756840059018,0.249,4312.2,4311.5,0.1296]
[1756840059019,0.249,4312.2,4311.6,0.3202]
[1756840059223,0.249,4312.2,4311.7,0.32450379]
[1756840059420,0.249,4312.2,4311.8,0.32450379]
[1756840059628,0.249,4312.2,4311.6,0.3202]
[1756840059824,0.249,4312.2,4311.7,0.32450301]
[1756840060130,0.249,4312.2,4311.9,0.3202]
[1756840060430,0.249,4312.2,4311.6,0.3202]
[1756840060634,0.249,4312.2,4311.7,0.32448343]
[1756840060928,0.249,4312.2,4311.8,0.32448343]
[1756840061228,0.326,4312.1,4311.9,0.3202]
[1756840061422,0.3227,4312.1,4311.9,0.3202]
[1756840061628,0.3227,4312.1,4311.1,4.69350534]
[1756840061629,0.3227,4312.1,4311.4,0.3236]
[1756840061819,0.3227,4312.1,4311.5,0.32455562]
[1756840062019,0.249,4312.2,4311.6,0.32455562]
[1756840062224,0.249,4312.2,4311.2,0.3236]
[1756840062225,0.3227,4312.1,4311.2,0.3236]
[1756840062531,3.2078,4311.9,4311.3,0.32279318]
[1756840062728,3.2078,4311.9,4311.4,0.32279318]
[1756840062920,0.3227,4311.8,4311.5,0.64639318]
[1756840063226,0.3227,4311.6,4311.2,0.3236]
[1756840063429,0.3227,4311.6,4311.3,0.32277204]
[1756840063624,0.3227,4311.6,4310.9,0.3236]
[1756840063819,0.3227,4311.6,4311.0,0.32282306]
[1756840064022,0.249,4311.7,4311.1,0.32282306]
[1756840064231,0.5717,4311.7,4310.7,0.3236]
[1756840064435,0.5717,4311.7,4310.9,0.3236]
[1756840064729,3.5305,4311.1,4310.5,0.3236]
[1756840064921,3.5305,4311.1,4310.1,4.44450534]
[1756840064922,0.249,4311.0,4310.7,0.3236]
[1756840065123,0.249,4311.0,4310.2,0.3236]
[1756840065323,0.249,4311.0,4310.4,0.3236]
[1756840065526,0.249,4311.0,4310.5,0.32280377]
[1756840065832,3.2078,4310.6,4310.1,0.3236]
[1756840066026,0.249,4310.5,4309.9,0.3236]
[1756840066227,0.3227,4310.4,4310.0,0.32272848]
[1756840066427,0.3227,4310.4,4309.7,0.3236]
[1756840066627,0.3227,4310.4,4309.8,0.32249949]
[1756840066827,0.3227,4310.4,4309.9,0.32249949]
[1756840067027,0.3227,4310.4,4310.0,0.32249949]
[1756840067223,0.3227,4310.4,4309.7,0.3236]
[1756840067426,0.3227,4310.4,4309.8,0.64593651]
[1756840067629,0.3227,4310.4,4309.8,0.3236]
[1756840068533,3.2078,4310.6,4309.8,0.3236]
[1756840068730,3.2078,4310.6,4309.9,0.32212999]
[1756840068939,0.249,4311.0,4310.6,0.3236]
[1756840069239,0.249,4311.0,4310.5,0.1245]
[1756840069636,0.5717,4311.0,4310.4,0.3236]
[1756840070532,0.249,4310.9,4310.5,0.1245]
[1756840070726,0.249,4310.9,4310.6,0.3236]
[1756840071133,0.249,4310.9,4310.3,3.2078]
[1756840071936,0.3227,4310.6,4310.0,0.3236]
[1756840072330,0.3227,4310.1,4309.5,3.5314]
[1756840072535,0.249,4310.0,4309.6,0.3236]
[1756840073127,0.3227,4309.9,4309.6,0.3236]
[1756840073332,0.249,4310.0,4309.6,0.3236]
[1756840073533,0.249,4309.9,4309.5,3.2078]
[1756840074037,0.5717,4309.9,4309.6,0.3236]
[1756840074233,0.5717,4309.9,4309.5,3.2078]
[1756840074632,0.5717,4309.9,4309.6,0.3236]
[1756840074828,0.249,4309.9,4309.6,0.3236]
[1756840075030,3.2078,4309.7,4309.0,3.2078]
[1756840075235,0.3227,4309.6,4309.0,3.5314]
[1756840075633,0.3227,4309.6,4309.0,3.2078]
[1756840075839,0.3227,4309.6,4308.7,0.3236]
[1756840076535,0.249,4309.5,4308.7,0.3236]
[1756840076737,0.3227,4309.6,4308.7,0.3236]
[1756840076937,0.249,4309.5,4308.7,0.3236]
[1756840078438,0.3227,4309.4,4308.7,0.3236]
[1756840079040,3.2078,4309.2,4308.5,0.1245]
[1756840079242,3.2078,4309.2,4308.4,3.2078]
[1756840079243,3.2078,4309.2,4308.6,0.3236]
[1756840079640,0.3227,4309.1,4308.6,0.3236]
[1756840079946,0.249,4309.0,4308.5,0.3236]
[1756840080245,0.249,4309.0,4308.1,0.3236]
[1756840080447,0.249,4308.9,4308.5,0.1245]
[1756840080642,3.2078,4309.2,4309.0,0.1245]
[1756840080849,0.249,4309.1,4309.0,0.4481]
[1756840081343,3.2078,4309.7,4309.0,0.1245]
[1756840081536,0.249,4309.6,4309.0,0.1245]
[1756840081742,3.2078,4309.2,4308.6,0.3236]
[1756840081947,0.3227,4309.0,4308.3,0.3236]
[1756840082746,3.2078,4308.7,4308.3,0.3236]
[1756840083148,0.249,4308.6,4308.3,0.3236]
[1756840083943,3.2078,4308.7,4308.3,0.3236]
[1756840084247,0.3227,4309.8,4308.6,0.3236]
[1756840084446,0.14,4309.9,4309.4,0.3236]
[1756840084751,3.2078,4310.2,4309.6,0.3236]
[1756840084951,0.249,4310.1,4309.6,0.3236]
[1756840085448,3.2078,4310.2,4309.6,0.3236]
[1756840085643,3.5305,4310.8,4310.0,0.4481]
[1756840085848,3.5305,4310.8,4310.1,0.3236]
[1756840085849,3.2078,4310.8,4310.1,0.3236]
[1756840086056,0.249,4310.7,4310.1,0.3236]
[1756840086743,0.249,4310.7,4309.6,0.3236]
[1756840086744,3.2078,4310.3,4309.6,0.3236]
[1756840086945,3.2078,4310.3,4308.4,1.23670534]
[1756840086946,3.2078,4309.8,4308.8,3.2078]
[1756840087241,0.249,4309.7,4309.1,0.3236]
[1756840087547,0.249,4309.6,4309.1,0.3236]
[1756840087849,0.249,4309.6,4308.8,3.2078]
[1756840088247,0.249,4309.5,4309.1,0.3236]
[1756840088445,0.249,4309.7,4309.5,0.1245]
[1756840088645,0.249,4309.7,4309.6,0.3236]
[1756840089049,0.249,4310.0,4309.6,0.3236]
[1756840090340,3.2078,4310.6,4309.6,0.3236]
[1756840090544,0.249,4310.5,4309.7,0.32211441]
[1756840090750,0.249,4310.5,4310.0,0.1245]
[1756840090950,0.249,4310.5,4310.1,0.3236]
[1756840091151,0.249,4310.5,4310.1,0.2916]
[1756840091553,0.249,4310.5,4310.0,0.1245]
[1756840092157,0.249,4310.5,4309.6,5.335]
[1756840092348,0.249,4310.5,4309.8,0.2916]
[1756840092543,0.249,4310.5,4309.9,0.322397]
[1756840092749,0.249,4310.5,4310.0,0.2916]
[1756840093358,0.3142,4310.4,4309.6,5.6266]
[1756840093659,0.3142,4310.4,4309.6,5.335]
[1756840093862,3.2078,4310.6,4309.7,0.2916]
[1756840093863,0.249,4310.3,4309.7,0.2916]
[1756840094558,0.3142,4310.2,4309.6,5.335]
[1756840094753,0.249,4310.3,4309.7,0.32226554]
[1756840094959,0.3142,4310.2,4309.6,5.335]
[1756840095360,3.2078,4309.7,4309.6,5.6266]
[1756840095562,3.4568,4309.7,4309.6,5.6266]
[1756840095955,3.4568,4309.7,4309.6,0.2916]
[1756840096763,3.771,4309.7,4309.1,5.335]
[1756840097067,3.771,4309.7,4309.0,0.1245]
[1756840097068,0.3142,4309.6,4309.2,5.65740512]
[1756840097366,0.3142,4309.6,4309.3,0.32240512]
[1756840097565,0.3142,4309.6,4309.5,0.2916]
[1756840097768,3.4568,4309.7,4309.2,5.335]
[1756840097955,3.2078,4309.7,4309.3,0.32264143]
[1756840098159,3.2078,4309.7,4309.6,0.2916]
[1756840098356,3.4568,4309.7,4309.6,0.2916]
[1756840099168,3.2078,4310.2,4309.6,0.2916]
[1756840099369,0.75453315,4310.1,4309.6,0.2916]
[1756840099572,0.249,4310.1,4309.5,0.117]
[1756840099762,0.249,4310.1,4309.6,0.2916]
[1756840100169,0.249,4310.1,4309.5,0.117]
[1756840100565,0.249,4310.0,4309.6,0.2916]
[1756840100770,3.2078,4309.7,4309.6,0.2916]
[1756840100970,3.522,4309.7,4309.6,0.2916]
[1756840102263,3.2078,4309.7,4309.6,0.61468505]
[1756840102764,3.4568,4309.7,4309.6,0.2916]
[1756840103367,3.4568,4309.7,4309.6,0.61476529]
[1756840103863,0.6442,4309.7,4309.6,0.61476529]
[1756840104064,0.6442,4309.7,4309.6,0.81666529]
[1756840104267,3.2078,4310.2,4310.1,0.7062]
[1756840104466,0.248,4310.2,4310.1,5.7496]
[1756840104772,0.248,4310.2,4310.1,6.0412]
[1756840105767,3.2078,4310.7,4310.1,6.0412]
[1756840105768,3.2078,4310.7,4310.2,0.2916]
[1756840105968,3.2078,4310.7,4310.0,0.117]
[1756840105969,0.248,4310.6,4310.5,0.117]
[1756840106469,0.248,4310.6,4310.5,0.4086]
[1756840106672,0.5622,4310.6,4310.5,0.2916]
[1756840106972,0.3142,4310.5,4310.3,5.335]
[1756840107168,0.248,4310.6,4310.3,5.335]
[1756840107368,0.3142,4310.5,4310.3,5.335]
[1756840107664,0.248,4310.6,4310.3,5.335]
[1756840108464,0.3142,4310.5,4310.3,5.335]
[1756840109064,0.248,4310.6,4310.3,5.335]
[1756840109269,0.3142,4310.5,4310.3,5.335]
[1756840110165,0.248,4310.6,4310.3,5.335]
[1756840110363,0.3142,4310.4,4310.3,5.335]
[1756840110569,0.3142,4310.4,4309.6,5.335]
[1756840110570,0.3142,4310.3,4309.6,5.335]
[1756840110879,0.3142,4309.8,4309.7,0.2916]
[1756840111065,0.248,4309.8,4309.7,0.2916]
[1756840112175,0.248,4309.8,4309.6,5.335]
[1756840112367,3.2078,4309.9,4309.6,5.335]
[1756840112567,0.248,4309.8,4309.7,0.2916]
[1756840112975,3.2078,4309.9,4309.6,5.335]
[1756840113162,3.2078,4309.9,4309.7,0.2916]
[1756840113367,0.248,4309.8,4309.7,0.2916]
[1756840113564,3.2078,4309.9,4309.7,0.61518233]
[1756840113766,3.2078,4309.9,4309.7,0.2916]
[1756840113767,0.248,4309.8,4309.7,0.2916]
[1756840113975,0.248,4309.8,4309.7,0.61518133]
[1756840114368,3.2078,4310.4,4309.8,0.2916]
[1756840114570,3.2078,4310.4,4309.5,0.117]
[1756840114571,0.75461234,4310.3,4309.5,0.117]
[1756840114765,3.2078,4309.9,4309.6,0.32365031]
[1756840115073,3.2078,4309.9,4309.8,0.2916]
[1756840115269,3.4558,4309.9,4309.8,0.2916]
[1756840115468,0.248,4309.9,4309.8,0.2916]
[1756840115669,3.2078,4310.4,4309.8,0.61525827]
[1756840115872,0.75461722,4310.3,4309.8,0.2916]
[1756840116072,0.50661722,4310.2,4309.8,0.2916]
[1756840116274,0.50661722,4310.1,4310.0,0.4146]
[1756840116573,0.50661722,4310.1,4310.0,0.7062]
[1756840116876,0.70325544,4310.1,4310.0,0.7062]
[1756840117469,0.90185544,4310.1,4310.0,0.7062]
[1756840117665,0.3142,4310.0,4309.6,5.6266]
[1756840117871,0.7094,4309.8,4309.2,1.52830534]
[1756840118070,0.1966,4309.4,4309.3,0.52571526]
[1756840118268,0.248,4309.4,4309.3,0.61541526]
[1756840118672,3.2078,4309.7,4309.4,0.2916]
[1756840118869,0.7605564,4309.6,4309.4,0.2916]
[1756840119071,0.248,4309.6,4309.1,0.2916]
[1756840119272,0.248,4309.6,4309.3,0.2916]
[1756840119477,0.248,4309.6,4309.5,0.2916]
[1756840121375,0.248,4309.6,4309.5,0.7074]
[1756840121581,0.4549,4309.6,4309.5,0.7074]
[1756840121882,0.6539,4309.6,4309.5,0.7074]
[1756840122083,0.248,4309.6,4309.5,0.7074]
[1756840122482,0.4549,4309.6,4309.5,0.7074]
[1756840123780,0.6539,4309.6,4309.5,0.7074]
[1756840123979,0.6539,4309.6,4309.1,5.335]
[1756840123980,1.48199621,4309.6,4309.1,5.335]
[1756840124177,0.2069,4309.3,4309.2,0.4089]
[1756840124383,0.4549,4309.3,4309.2,0.7036]
[1756840124777,0.2069,4309.3,4309.2,0.7036]
[1756840124976,0.4549,4309.3,4309.2,0.7036]